[Event "Titled Tuesday Blitz March 21 Late 2023"]
[White "Albuquerque Junior,Wellington S."]
[Black "Panesso Rivera, Henry"]
[WhiteFideId "2151480"]
[BlackFideId "4402707"]
[WhiteElo "2109"]
[BlackElo "2345"]
[Result "0-1"]
[Round "01"]
[TimeControl "180+2"]
[Date "2023.03.21"]
[WhiteClock "0:00:04"]
[BlackClock "0:00:52"]

1. c4 {[%clk 0:02:59]}  e5 {[%clk 0:02:58]} 2. g3 {[%clk 0:02:58]}  Nf6 {[%clk 0:02:58]} 3. Bg2 {[%clk 0:02:59]}  c6 {[%clk 0:02:58]} 4. d4 {[%clk 0:02:58]}  exd4 {[%clk 0:02:58]} 5. Nf3 {[%clk 0:02:59]}  Bb4+ {[%clk 0:02:50]} 6. Nbd2 {[%clk 0:02:56]}  c5 {[%clk 0:02:47]} 7. O-O {[%clk 0:02:56]}  O-O {[%clk 0:02:43]} 8. Nb3 {[%clk 0:02:56]}  d6 {[%clk 0:02:41]} 9. a3 {[%clk 0:02:53]}  Ba5 {[%clk 0:02:41]} 10. e3 {[%clk 0:02:52]}  dxe3 {[%clk 0:02:40]} 11. Bxe3 {[%clk 0:02:53]}  Bc7 {[%clk 0:02:38]} 12. Qc2 {[%clk 0:02:02]}  Nc6 {[%clk 0:02:37]} 13. Rad1 {[%clk 0:02:01]}  Qe7 {[%clk 0:02:31]} 14. Rfe1 {[%clk 0:01:59]}  Be6 {[%clk 0:02:29]} 15. Ng5 {[%clk 0:01:55]}  h6 {[%clk 0:02:23]} 16. Nxe6 {[%clk 0:01:36]}  fxe6 {[%clk 0:02:23]} 17. Bh3 {[%clk 0:01:27]}  e5 {[%clk 0:02:22]} 18. Qg6 {[%clk 0:01:16]}  Qf7 {[%clk 0:02:19]} 19. Qxf7+ {[%clk 0:01:16]}  Kxf7 {[%clk 0:02:19]} 20. f4 {[%clk 0:01:09]}  Rae8 {[%clk 0:02:01]} 21. Bg2 {[%clk 0:01:01]}  Kg8 {[%clk 0:01:20]} 22. fxe5 {[%clk 0:00:27]}  Rxe5 {[%clk 0:01:17]} 23. Bf4 {[%clk 0:00:18]}  Rxe1+ {[%clk 0:01:15]} 24. Rxe1 {[%clk 0:00:19]}  g5 {[%clk 0:01:13]} 25. Bd2 {[%clk 0:00:13]}  Re8 {[%clk 0:01:07]} 26. Bd5+ {[%clk 0:00:09]}  Kg7 {[%clk 0:01:04]} 27. Rf1 {[%clk 0:00:08]}  Ne5 {[%clk 0:00:59]} 28. Bxb7 {[%clk 0:00:04]}  Nxc4 {[%clk 0:00:55]} 29. Bc3 {[%clk 0:00:04]}  Bd8 {[%clk 0:00:52]} 0-1


[Site "https://www.chess.com"]

[Event "Titled Tuesday Blitz March 21 Late 2023"]
[White "Brodowski, Piotr"]
[Black "Todev, Simeon"]
[WhiteFideId "1124480"]
[BlackFideId "2925133"]
[WhiteElo "2351"]
[BlackElo "1938"]
[Result "1-0"]
[Round "01"]
[TimeControl "180+2"]
[Date "2023.03.21"]
[WhiteClock "0:01:15"]
[BlackClock "0:00:08"]

1. Nf3 {[%clk 0:02:54]}  c5 {[%clk 0:02:49]} 2. e4 {[%clk 0:02:53]}  Nc6 {[%clk 0:02:48]} 3. Bb5 {[%clk 0:02:45]}  e6 {[%clk 0:02:48]} 4. O-O {[%clk 0:02:43]}  g6 {[%clk 0:02:41]} 5. Bxc6 {[%clk 0:02:36]}  bxc6 {[%clk 0:02:37]} 6. d4 {[%clk 0:02:31]}  cxd4 {[%clk 0:02:36]} 7. Qxd4 {[%clk 0:02:30]}  Qf6 {[%clk 0:02:31]} 8. e5 {[%clk 0:02:29]}  Qd8 {[%clk 0:02:28]} 9. Nc3 {[%clk 0:02:29]}  Ne7 {[%clk 0:02:27]} 10. Bg5 {[%clk 0:02:27]}  Bg7 {[%clk 0:02:23]} 11. Ne4 {[%clk 0:02:25]}  O-O {[%clk 0:02:22]} 12. Rad1 {[%clk 0:02:09]}  Rb8 {[%clk 0:02:12]} 13. b3 {[%clk 0:02:08]}  Rb5 {[%clk 0:02:10]} 14. c4 {[%clk 0:02:03]}  Ra5 {[%clk 0:02:08]} 15. a4 {[%clk 0:02:03]}  h6 {[%clk 0:02:06]} 16. Bf6 {[%clk 0:02:01]}  c5 {[%clk 0:01:34]} 17. Qc3 {[%clk 0:01:56]}  Ra6 {[%clk 0:01:10]} 18. Nxc5 {[%clk 0:01:48]}  Rc6 {[%clk 0:01:09]} 19. Ne4 {[%clk 0:01:48]}  Bxf6 {[%clk 0:01:05]} 20. Nxf6+ {[%clk 0:01:47]}  Kg7 {[%clk 0:01:04]} 21. Nd4 {[%clk 0:01:45]}  Rc5 {[%clk 0:01:02]} 22. Nb5 {[%clk 0:01:44]}  Nc6 {[%clk 0:00:48]} 23. f4 {[%clk 0:01:40]}  a6 {[%clk 0:00:46]} 24. Nd6 {[%clk 0:01:39]}  Qb6 {[%clk 0:00:38]} 25. Kh1 {[%clk 0:01:39]}  Ra5 {[%clk 0:00:23]} 26. Nde8+ {[%clk 0:01:18]}  Kh8 {[%clk 0:00:18]} 27. Qh3 {[%clk 0:01:18]}  h5 {[%clk 0:00:08]} 28. Nxh5 {[%clk 0:01:18]}  Rxe8 {[%clk 0:00:08]} 29. Nf6+ {[%clk 0:01:18]}  Kg7 {[%clk 0:00:07]} 30. Qh7+ {[%clk 0:01:15]}  Kf8 {[%clk 0:00:08]} 31. Qg8+ {[%clk 0:01:15]} 1-0


[Site "https://www.chess.com"]

[Event "Titled Tuesday Blitz March 21 Late 2023"]
[White "Stanisz, Patryk"]
[Black "Mihajlov, Sebastian"]
[WhiteFideId "1123106"]
[BlackFideId "1512110"]
[WhiteElo "2069"]
[BlackElo "2464"]
[Result "0-1"]
[Round "01"]
[TimeControl "180+2"]
[Date "2023.03.21"]
[WhiteClock "0:00:02"]
[BlackClock "0:01:18"]

1. d4 {[%clk 0:03:00]}  g6 {[%clk 0:02:59]} 2. c4 {[%clk 0:02:59]}  Bg7 {[%clk 0:03:00]} 3. Nc3 {[%clk 0:02:59]}  c5 {[%clk 0:03:00]} 4. Nf3 {[%clk 0:02:58]}  Nc6 {[%clk 0:02:52]} 5. d5 {[%clk 0:02:57]}  Nd4 {[%clk 0:02:50]} 6. e3 {[%clk 0:02:54]}  Nxf3+ {[%clk 0:02:48]} 7. Qxf3 {[%clk 0:02:54]}  d6 {[%clk 0:02:49]} 8. Bd3 {[%clk 0:02:47]}  Nf6 {[%clk 0:02:48]} 9. Bd2 {[%clk 0:02:47]}  h5 {[%clk 0:02:48]} 10. h3 {[%clk 0:02:46]}  Nd7 {[%clk 0:02:39]} 11. Qe2 {[%clk 0:02:46]}  Ne5 {[%clk 0:02:39]} 12. O-O {[%clk 0:02:46]}  Nxd3 {[%clk 0:02:36]} 13. Qxd3 {[%clk 0:02:47]}  O-O {[%clk 0:02:36]} 14. e4 {[%clk 0:02:46]}  a6 {[%clk 0:02:36]} 15. Kh2 {[%clk 0:02:45]}  b5 {[%clk 0:02:35]} 16. cxb5 {[%clk 0:02:41]}  axb5 {[%clk 0:02:35]} 17. a4 {[%clk 0:02:10]}  b4 {[%clk 0:02:34]} 18. Nb5 {[%clk 0:02:10]}  Bxb2 {[%clk 0:02:34]} 19. Bh6 {[%clk 0:02:00]}  Re8 {[%clk 0:02:32]} 20. f4 {[%clk 0:01:54]}  Kh7 {[%clk 0:02:24]} 21. Bg5 {[%clk 0:01:53]}  f6 {[%clk 0:02:23]} 22. Bh4 {[%clk 0:01:53]}  Bxa1 {[%clk 0:02:23]} 23. Rxa1 {[%clk 0:01:52]}  Bd7 {[%clk 0:02:24]} 24. e5 {[%clk 0:01:27]}  dxe5 {[%clk 0:02:23]} 25. fxe5 {[%clk 0:01:27]}  Bxb5 {[%clk 0:02:24]} 26. Qxb5 {[%clk 0:01:26]}  Qxd5 {[%clk 0:02:24]} 27. exf6 {[%clk 0:01:21]}  exf6 {[%clk 0:02:19]} 28. Rf1 {[%clk 0:01:06]}  g5 {[%clk 0:02:11]} 29. Bg3 {[%clk 0:00:40]}  h4 {[%clk 0:02:10]} 30. Bc7 {[%clk 0:00:31]}  Kg6 {[%clk 0:02:01]} 31. a5 {[%clk 0:00:17]}  Rac8 {[%clk 0:01:52]} 32. a6 {[%clk 0:00:15]}  Ra8 {[%clk 0:01:42]} 33. a7 {[%clk 0:00:14]}  Re6 {[%clk 0:01:41]} 34. Bb8 {[%clk 0:00:13]}  b3 {[%clk 0:01:39]} 35. Qa4 {[%clk 0:00:03]}  c4 {[%clk 0:01:36]} 36. Qa1 {[%clk 0:00:02]}  Qd3 {[%clk 0:01:20]} 37. Qa5 {[%clk 0:00:02]}  Qxf1 {[%clk 0:01:18]} 0-1


[Site "https://www.chess.com"]

[Event "Titled Tuesday Blitz March 21 Late 2023"]
[White "Mustafayev, Farid"]
[Black "Onslow, Alfie"]
[WhiteFideId "13408771"]
[BlackFideId "436976"]
[WhiteElo "2269"]
[BlackElo "2114"]
[Result "1-0"]
[Round "01"]
[TimeControl "180+2"]
[Date "2023.03.21"]
[WhiteClock "0:01:06"]
[BlackClock "0:00:07"]

1. Nf3 {[%clk 0:02:59]}  c5 {[%clk 0:02:58]} 2. g3 {[%clk 0:03:00]}  Nc6 {[%clk 0:02:59]} 3. Bg2 {[%clk 0:03:00]}  e5 {[%clk 0:02:59]} 4. d3 {[%clk 0:03:00]}  d5 {[%clk 0:02:58]} 5. O-O {[%clk 0:03:00]}  Nf6 {[%clk 0:02:58]} 6. Nbd2 {[%clk 0:03:00]}  Be7 {[%clk 0:02:57]} 7. e4 {[%clk 0:02:56]}  d4 {[%clk 0:02:56]} 8. Nc4 {[%clk 0:02:56]}  Qc7 {[%clk 0:02:56]} 9. a4 {[%clk 0:02:57]}  O-O {[%clk 0:02:55]} 10. h3 {[%clk 0:02:57]}  b6 {[%clk 0:02:53]} 11. Qe2 {[%clk 0:02:54]}  Be6 {[%clk 0:02:53]} 12. Bd2 {[%clk 0:02:54]}  a6 {[%clk 0:02:52]} 13. Nh4 {[%clk 0:02:44]}  b5 {[%clk 0:02:50]} 14. axb5 {[%clk 0:02:45]}  axb5 {[%clk 0:02:51]} 15. Na3 {[%clk 0:02:45]}  Qb6 {[%clk 0:02:41]} 16. Nf5 {[%clk 0:02:44]}  Rfc8 {[%clk 0:02:33]} 17. f4 {[%clk 0:02:43]}  Bf8 {[%clk 0:02:23]} 18. g4 {[%clk 0:02:25]}  exf4 {[%clk 0:02:13]} 19. Bxf4 {[%clk 0:02:24]}  Nd7 {[%clk 0:02:14]} 20. Bd6 {[%clk 0:02:07]}  c4 {[%clk 0:02:07]} 21. Bxf8 {[%clk 0:02:05]}  Rxf8 {[%clk 0:02:00]} 22. Kh1 {[%clk 0:01:56]}  Nde5 {[%clk 0:01:57]} 23. Qd2 {[%clk 0:01:53]}  f6 {[%clk 0:01:19]} 24. g5 {[%clk 0:01:53]}  cxd3 {[%clk 0:01:06]} 25. gxf6 {[%clk 0:01:45]}  Rxf6 {[%clk 0:01:04]} 26. cxd3 {[%clk 0:01:43]}  b4 {[%clk 0:00:54]} 27. Nc4 {[%clk 0:01:36]}  Qd8 {[%clk 0:00:43]} 28. Rxa8 {[%clk 0:01:29]}  Qxa8 {[%clk 0:00:44]} 29. Nxe5 {[%clk 0:01:19]}  Nxe5 {[%clk 0:00:45]} 30. Qxb4 {[%clk 0:01:20]}  Bxf5 {[%clk 0:00:22]} 31. exf5 {[%clk 0:01:18]}  Qc8 {[%clk 0:00:20]} 32. Qxd4 {[%clk 0:01:16]}  Rxf5 {[%clk 0:00:20]} 33. Qd5+ {[%clk 0:01:09]}  Kf8 {[%clk 0:00:13]} 34. Qxe5 {[%clk 0:01:05]}  Rxf1+ {[%clk 0:00:03]} 35. Bxf1 {[%clk 0:01:06]}  Qc1 {[%clk 0:00:02]} 36. Qf5+ {[%clk 0:01:05]}  Kg8 {[%clk 0:00:02]} 37. Qf2 {[%clk 0:01:04]}  Qd1 {[%clk 0:00:02]} 38. Kh2 {[%clk 0:01:03]}  h6 {[%clk 0:00:03]} 39. Bg2 {[%clk 0:01:03]}  Qc1 {[%clk 0:00:04]} 40. Bd5+ {[%clk 0:01:03]}  Kh8 {[%clk 0:00:04]} 41. Qf8+ {[%clk 0:01:03]}  Kh7 {[%clk 0:00:05]} 42. Be4+ {[%clk 0:01:04]}  g6 {[%clk 0:00:05]} 43. Qf7+ {[%clk 0:01:04]}  Kh8 {[%clk 0:00:06]} 44. Qf6+ {[%clk 0:01:05]}  Kh7 {[%clk 0:00:06]} 45. Bxg6+ {[%clk 0:01:05]}  Kg8 {[%clk 0:00:06]} 46. Qf7+ {[%clk 0:01:05]}  Kh8 {[%clk 0:00:07]} 47. Qh7# {[%clk 0:01:06]} 1-0


[Site "https://www.chess.com"]

[Event "Titled Tuesday Blitz March 21 Late 2023"]
[White "Krallis, Christos"]
[Black "Thiel, Thomas"]
[WhiteFideId "4298896"]
[BlackFideId "4615964"]
[WhiteElo "2243"]
[BlackElo "2252"]
[Result "1-0"]
[Round "01"]
[TimeControl "180+2"]
[Date "2023.03.21"]
[WhiteClock "0:00:09"]
[BlackClock "0:00:02"]

1. b3 {[%clk 0:02:58]}  e5 {[%clk 0:02:58]} 2. Bb2 {[%clk 0:02:58]}  Nc6 {[%clk 0:02:56]} 3. c4 {[%clk 0:02:47]}  Nf6 {[%clk 0:02:55]} 4. e3 {[%clk 0:02:43]}  Bd6 {[%clk 0:02:53]} 5. Nc3 {[%clk 0:02:39]}  O-O {[%clk 0:02:51]} 6. Bd3 {[%clk 0:02:38]}  Re8 {[%clk 0:02:49]} 7. Ne4 {[%clk 0:02:30]}  Nxe4 {[%clk 0:02:44]} 8. Bxe4 {[%clk 0:02:29]}  g6 {[%clk 0:02:44]} 9. h4 {[%clk 0:02:25]}  f5 {[%clk 0:02:15]} 10. Bd5+ {[%clk 0:02:24]}  Kg7 {[%clk 0:02:14]} 11. Nf3 {[%clk 0:02:16]}  Qf6 {[%clk 0:02:11]} 12. d4 {[%clk 0:02:01]}  e4 {[%clk 0:02:07]} 13. Bxc6 {[%clk 0:01:43]}  Bb4+ {[%clk 0:02:06]} 14. Kf1 {[%clk 0:01:35]}  dxc6 {[%clk 0:02:03]} 15. Ne5 {[%clk 0:01:33]}  Bd6 {[%clk 0:01:40]} 16. h5 {[%clk 0:01:19]}  g5 {[%clk 0:01:33]} 17. h6+ {[%clk 0:01:16]}  Kf8 {[%clk 0:01:29]} 18. Qh5 {[%clk 0:01:02]}  Be6 {[%clk 0:01:17]} 19. a4 {[%clk 0:00:26]}  Bxe5 {[%clk 0:01:17]} 20. dxe5 {[%clk 0:00:26]}  Qg6 {[%clk 0:01:16]} 21. Qxg6 {[%clk 0:00:18]}  hxg6 {[%clk 0:01:17]} 22. a5 {[%clk 0:00:15]}  a6 {[%clk 0:01:13]} 23. Bd4 {[%clk 0:00:15]}  Kg8 {[%clk 0:01:10]} 24. Ke2 {[%clk 0:00:14]}  Kh7 {[%clk 0:01:09]} 25. Kd2 {[%clk 0:00:14]}  Red8 {[%clk 0:00:59]} 26. Kc3 {[%clk 0:00:14]}  Rab8 {[%clk 0:00:53]} 27. b4 {[%clk 0:00:14]}  Rd7 {[%clk 0:00:45]} 28. f3 {[%clk 0:00:15]}  exf3 {[%clk 0:00:43]} 29. gxf3 {[%clk 0:00:15]}  Bg8 {[%clk 0:00:34]} 30. Rag1 {[%clk 0:00:14]}  b6 {[%clk 0:00:30]} 31. axb6 {[%clk 0:00:13]}  cxb6 {[%clk 0:00:30]} 32. Rxg5 {[%clk 0:00:13]}  a5 {[%clk 0:00:27]} 33. bxa5 {[%clk 0:00:10]}  c5 {[%clk 0:00:22]} 34. Rhg1 {[%clk 0:00:09]}  cxd4+ {[%clk 0:00:20]} 35. exd4 {[%clk 0:00:10]}  Bf7 {[%clk 0:00:17]} 36. e6 {[%clk 0:00:10]}  Bxe6 {[%clk 0:00:11]} 37. Rxg6 {[%clk 0:00:10]}  Rd6 {[%clk 0:00:04]} 38. axb6 {[%clk 0:00:09]}  Rdxb6 {[%clk 0:00:02]} 39. d5 {[%clk 0:00:09]} 1-0


[Site "https://www.chess.com"]

[Event "Titled Tuesday Blitz March 21 Late 2023"]
[White "Fajdetic, Hrvoje"]
[Black "benny_aizenberg"]
[WhiteFideId "14501945"]
[WhiteElo "2185"]
[BlackElo "2605"]
[Result "0-1"]
[Round "01"]
[TimeControl "180+2"]
[Date "2023.03.21"]
[WhiteClock "0:00:06"]
[BlackClock "0:00:11"]

1. d4 {[%clk 0:02:59]}  f5 {[%clk 0:02:58]} 2. Bg5 {[%clk 0:02:59]}  g6 {[%clk 0:02:55]} 3. h4 {[%clk 0:02:58]}  Bg7 {[%clk 0:02:54]} 4. Nc3 {[%clk 0:02:52]}  d6 {[%clk 0:02:52]} 5. e4 {[%clk 0:02:51]}  fxe4 {[%clk 0:02:51]} 6. Nxe4 {[%clk 0:02:52]}  Bf5 {[%clk 0:02:50]} 7. Ng3 {[%clk 0:02:50]}  Bd7 {[%clk 0:02:46]} 8. Bc4 {[%clk 0:02:44]}  Nc6 {[%clk 0:02:44]} 9. c3 {[%clk 0:02:37]}  h6 {[%clk 0:02:43]} 10. Qd3 {[%clk 0:02:27]}  Bf5 {[%clk 0:02:37]} 11. Nxf5 {[%clk 0:02:25]}  gxf5 {[%clk 0:02:37]} 12. Qxf5 {[%clk 0:02:24]}  Bf6 {[%clk 0:02:26]} 13. Be6 {[%clk 0:02:04]}  Kf8 {[%clk 0:02:23]} 14. Be3 {[%clk 0:01:42]}  Qe8 {[%clk 0:02:19]} 15. Nf3 {[%clk 0:01:41]}  Nd8 {[%clk 0:02:18]} 16. Bb3 {[%clk 0:01:36]}  e6 {[%clk 0:02:16]} 17. Qf4 {[%clk 0:01:32]}  Ke7 {[%clk 0:02:16]} 18. O-O-O {[%clk 0:01:27]}  Qg6 {[%clk 0:01:57]} 19. g4 {[%clk 0:01:22]}  Nf7 {[%clk 0:01:45]} 20. g5 {[%clk 0:01:14]}  hxg5 {[%clk 0:01:44]} 21. hxg5 {[%clk 0:01:14]}  Bg7 {[%clk 0:01:40]} 22. Rxh8 {[%clk 0:01:00]}  Nxh8 {[%clk 0:01:32]} 23. Re1 {[%clk 0:00:59]}  Rf8 {[%clk 0:01:31]} 24. Qg4 {[%clk 0:00:59]}  Qf5 {[%clk 0:01:13]} 25. Qxf5 {[%clk 0:00:46]}  Rxf5 {[%clk 0:01:14]} 26. Nh4 {[%clk 0:00:43]}  Rf8 {[%clk 0:01:08]} 27. f4 {[%clk 0:00:43]}  d5 {[%clk 0:01:05]} 28. Bd2 {[%clk 0:00:39]}  Kd7 {[%clk 0:01:04]} 29. Bc2 {[%clk 0:00:37]}  Ne7 {[%clk 0:01:04]} 30. Rf1 {[%clk 0:00:32]}  Nf5 {[%clk 0:00:59]} 31. Nxf5 {[%clk 0:00:32]}  exf5 {[%clk 0:00:59]} 32. Rh1 {[%clk 0:00:31]}  Ke6 {[%clk 0:00:57]} 33. Rh7 {[%clk 0:00:31]}  Rg8 {[%clk 0:00:57]} 34. b3 {[%clk 0:00:23]}  Ng6 {[%clk 0:00:56]} 35. c4 {[%clk 0:00:23]}  c6 {[%clk 0:00:55]} 36. Be3 {[%clk 0:00:22]}  Ne7 {[%clk 0:00:51]} 37. Rh1 {[%clk 0:00:20]}  Rd8 {[%clk 0:00:46]} 38. Re1 {[%clk 0:00:17]}  Kf7 {[%clk 0:00:46]} 39. c5 {[%clk 0:00:14]}  Rh8 {[%clk 0:00:46]} 40. Bf2 {[%clk 0:00:10]}  Rh2 {[%clk 0:00:42]} 41. Rf1 {[%clk 0:00:10]}  Rh3 {[%clk 0:00:35]} 42. b4 {[%clk 0:00:10]}  Rf3 {[%clk 0:00:35]} 43. Kd2 {[%clk 0:00:04]}  Bxd4 {[%clk 0:00:20]} 44. Ke2 {[%clk 0:00:04]}  Rxf4 {[%clk 0:00:21]} 45. Bxd4 {[%clk 0:00:04]}  Rxd4 {[%clk 0:00:21]} 46. Bxf5 {[%clk 0:00:03]}  Nxf5 {[%clk 0:00:22]} 47. Rxf5+ {[%clk 0:00:04]}  Kg6 {[%clk 0:00:23]} 48. Re5 {[%clk 0:00:03]}  Rxb4 {[%clk 0:00:22]} 49. Re7 {[%clk 0:00:02]}  Kxg5 {[%clk 0:00:21]} 50. Kd3 {[%clk 0:00:02]}  Kf6 {[%clk 0:00:21]} 51. Rh7 {[%clk 0:00:02]}  Ke6 {[%clk 0:00:15]} 52. a3 {[%clk 0:00:02]}  Rb3+ {[%clk 0:00:15]} 53. Kd4 {[%clk 0:00:03]}  a5 {[%clk 0:00:12]} 54. Rh6+ {[%clk 0:00:03]}  Kd7 {[%clk 0:00:12]} 55. Rh7+ {[%clk 0:00:03]}  Kc8 {[%clk 0:00:12]} 56. Rh8+ {[%clk 0:00:04]}  Kc7 {[%clk 0:00:13]} 57. Rh7+ {[%clk 0:00:05]}  Kb8 {[%clk 0:00:13]} 58. Rh8+ {[%clk 0:00:05]}  Ka7 {[%clk 0:00:14]} 59. Rh7 {[%clk 0:00:06]}  Rxa3 {[%clk 0:00:14]} 60. Ke5 {[%clk 0:00:06]}  Rg3 {[%clk 0:00:12]} 61. Kd6 {[%clk 0:00:07]}  a4 {[%clk 0:00:12]} 62. Kc7 {[%clk 0:00:07]}  a3 {[%clk 0:00:13]} 63. Rh2 {[%clk 0:00:07]}  Rc3 {[%clk 0:00:11]} 64. Ra2 {[%clk 0:00:07]}  d4 {[%clk 0:00:11]} 65. Kd6 {[%clk 0:00:06]}  d3 {[%clk 0:00:12]} 66. Ke5 {[%clk 0:00:07]}  Rxc5+ {[%clk 0:00:10]} 67. Kd4 {[%clk 0:00:07]}  Rd5+ {[%clk 0:00:11]} 68. Kc3 {[%clk 0:00:05]}  d2 {[%clk 0:00:11]} 69. Rxa3+ {[%clk 0:00:06]}  Kb8 {[%clk 0:00:11]} 70. Ra1 {[%clk 0:00:05]}  d1=Q {[%clk 0:00:11]} 71. Rxd1 {[%clk 0:00:06]}  Rxd1 {[%clk 0:00:11]} 0-1


[Site "https://www.chess.com"]

[Event "Titled Tuesday Blitz March 21 Late 2023"]
[White "Sivakumar, Shaaketh"]
[Black "Lauridsen, Jesper Morch"]
[WhiteFideId "30940176"]
[BlackFideId "1401890"]
[WhiteElo "2174"]
[BlackElo "2249"]
[Result "1-0"]
[Round "01"]
[TimeControl "180+2"]
[Date "2023.03.21"]
[WhiteClock "0:02:01"]
[BlackClock "0:00:08"]

1. e4 {[%clk 0:02:56]}  c5 {[%clk 0:02:59]} 2. Nf3 {[%clk 0:02:51]}  d6 {[%clk 0:02:59]} 3. d4 {[%clk 0:02:51]}  cxd4 {[%clk 0:03:00]} 4. Qxd4 {[%clk 0:02:50]}  Nc6 {[%clk 0:02:56]} 5. Bb5 {[%clk 0:02:51]}  Bd7 {[%clk 0:02:56]} 6. Qd3 {[%clk 0:02:51]}  Nf6 {[%clk 0:02:54]} 7. c4 {[%clk 0:02:51]}  a6 {[%clk 0:02:51]} 8. Bxc6 {[%clk 0:02:51]}  Bxc6 {[%clk 0:02:50]} 9. Nc3 {[%clk 0:02:51]}  b5 {[%clk 0:02:45]} 10. cxb5 {[%clk 0:02:50]}  axb5 {[%clk 0:02:45]} 11. Nd4 {[%clk 0:02:48]}  Qd7 {[%clk 0:02:25]} 12. Nxc6 {[%clk 0:02:47]}  Qxc6 {[%clk 0:02:25]} 13. Qxb5 {[%clk 0:02:48]}  Qxb5 {[%clk 0:02:14]} 14. Nxb5 {[%clk 0:02:49]}  Ra4 {[%clk 0:02:08]} 15. f3 {[%clk 0:02:47]}  e6 {[%clk 0:01:56]} 16. Bf4 {[%clk 0:02:44]}  d5 {[%clk 0:01:52]} 17. O-O-O {[%clk 0:02:38]}  Rxa2 {[%clk 0:01:35]} 18. Kb1 {[%clk 0:02:30]}  Ra5 {[%clk 0:01:34]} 19. Nc7+ {[%clk 0:02:27]}  Kd7 {[%clk 0:01:32]} 20. exd5 {[%clk 0:02:27]}  exd5 {[%clk 0:01:19]} 21. Be5 {[%clk 0:02:27]}  Bd6 {[%clk 0:00:43]} 22. Bxf6 {[%clk 0:02:26]}  Bxc7 {[%clk 0:00:41]} 23. Bxg7 {[%clk 0:02:26]}  Rg8 {[%clk 0:00:41]} 24. Bc3 {[%clk 0:02:27]}  Rb5 {[%clk 0:00:39]} 25. g3 {[%clk 0:02:26]}  h5 {[%clk 0:00:34]} 26. Rd3 {[%clk 0:02:23]}  h4 {[%clk 0:00:33]} 27. g4 {[%clk 0:02:21]}  h3 {[%clk 0:00:34]} 28. Rhd1 {[%clk 0:02:19]}  Kc6 {[%clk 0:00:32]} 29. R3d2 {[%clk 0:02:10]}  Bf4 {[%clk 0:00:29]} 30. Rc2 {[%clk 0:02:10]}  Kb7 {[%clk 0:00:27]} 31. Re1 {[%clk 0:02:06]}  Rc8 {[%clk 0:00:22]} 32. Be5 {[%clk 0:02:02]}  Rxc2 {[%clk 0:00:18]} 33. Kxc2 {[%clk 0:02:03]}  Bxe5 {[%clk 0:00:17]} 34. Rxe5 {[%clk 0:02:03]}  Rc5+ {[%clk 0:00:17]} 35. Kd3 {[%clk 0:02:03]}  Kc6 {[%clk 0:00:17]} 36. Rh5 {[%clk 0:02:02]}  Rb5 {[%clk 0:00:16]} 37. Kc2 {[%clk 0:02:02]}  Rc5+ {[%clk 0:00:15]} 38. Kb1 {[%clk 0:02:03]}  Kb5 {[%clk 0:00:14]} 39. Rxh3 {[%clk 0:02:03]}  Ka4 {[%clk 0:00:14]} 40. Rh7 {[%clk 0:02:02]}  Rc7 {[%clk 0:00:13]} 41. Rh5 {[%clk 0:02:01]}  Rd7 {[%clk 0:00:13]} 42. Kc2 {[%clk 0:02:00]}  Rc7+ {[%clk 0:00:12]} 43. Kd3 {[%clk 0:02:00]}  Rb7 {[%clk 0:00:12]} 44. Rxd5 {[%clk 0:02:00]}  Rxb2 {[%clk 0:00:12]} 45. h4 {[%clk 0:02:00]}  Rh2 {[%clk 0:00:11]} 46. h5 {[%clk 0:02:00]}  Kb4 {[%clk 0:00:11]} 47. Ke4 {[%clk 0:02:01]}  Kc4 {[%clk 0:00:10]} 48. Rd7 {[%clk 0:02:00]}  Re2+ {[%clk 0:00:09]} 49. Kf5 {[%clk 0:02:01]}  Re3 {[%clk 0:00:09]} 50. f4 {[%clk 0:02:01]}  Rf3 {[%clk 0:00:08]} 51. h6 {[%clk 0:02:01]} 1-0


[Site "https://www.chess.com"]

[Event "Titled Tuesday Blitz March 21 Late 2023"]
[White "Wang, Alexander J"]
[Black "Ambartsumova, Karina"]
[WhiteFideId "30955270"]
[BlackFideId "4166299"]
[WhiteElo "2247"]
[BlackElo "2300"]
[Result "1-0"]
[Round "01"]
[TimeControl "180+2"]
[Date "2023.03.21"]
[WhiteClock "0:00:38"]
[BlackClock "0:00:08"]

1. e4 {[%clk 0:02:58]}  c5 {[%clk 0:02:59]} 2. Nf3 {[%clk 0:02:57]}  Nc6 {[%clk 0:02:58]} 3. d4 {[%clk 0:02:57]}  cxd4 {[%clk 0:02:59]} 4. Nxd4 {[%clk 0:02:58]}  Qb6 {[%clk 0:03:00]} 5. Nf3 {[%clk 0:02:53]}  Nf6 {[%clk 0:02:54]} 6. Nc3 {[%clk 0:02:52]}  d6 {[%clk 0:02:46]} 7. Rb1 {[%clk 0:02:51]}  e6 {[%clk 0:02:41]} 8. Be3 {[%clk 0:02:49]}  Qc7 {[%clk 0:02:39]} 9. h3 {[%clk 0:02:41]}  a6 {[%clk 0:02:38]} 10. a4 {[%clk 0:02:40]}  Be7 {[%clk 0:02:36]} 11. Be2 {[%clk 0:02:39]}  O-O {[%clk 0:02:35]} 12. O-O {[%clk 0:02:33]}  b6 {[%clk 0:02:35]} 13. Nd4 {[%clk 0:02:32]}  Qb7 {[%clk 0:02:35]} 14. f3 {[%clk 0:02:29]}  Bd7 {[%clk 0:02:28]} 15. Nxc6 {[%clk 0:02:28]}  Bxc6 {[%clk 0:02:28]} 16. Qd4 {[%clk 0:02:26]}  b5 {[%clk 0:02:25]} 17. axb5 {[%clk 0:02:24]}  axb5 {[%clk 0:02:26]} 18. Qb6 {[%clk 0:02:18]}  Qxb6 {[%clk 0:02:22]} 19. Bxb6 {[%clk 0:02:19]}  b4 {[%clk 0:02:21]} 20. Nd1 {[%clk 0:02:14]}  Nd7 {[%clk 0:02:02]} 21. Be3 {[%clk 0:02:14]}  d5 {[%clk 0:02:01]} 22. Nf2 {[%clk 0:02:11]}  dxe4 {[%clk 0:01:57]} 23. fxe4 {[%clk 0:02:11]}  Bc5 {[%clk 0:01:50]} 24. Bxc5 {[%clk 0:02:09]}  Nxc5 {[%clk 0:01:51]} 25. Bd3 {[%clk 0:02:08]}  b3 {[%clk 0:01:16]} 26. Rbc1 {[%clk 0:02:00]}  Rfc8 {[%clk 0:00:52]} 27. Rfe1 {[%clk 0:01:43]}  Nxd3 {[%clk 0:00:38]} 28. cxd3 {[%clk 0:01:42]}  Bb5 {[%clk 0:00:36]} 29. d4 {[%clk 0:01:36]}  Kf8 {[%clk 0:00:33]} 30. e5 {[%clk 0:01:16]}  Rxc1 {[%clk 0:00:32]} 31. Rxc1 {[%clk 0:01:15]}  Ra2 {[%clk 0:00:33]} 32. Nd1 {[%clk 0:01:12]}  Ke7 {[%clk 0:00:23]} 33. Nc3 {[%clk 0:01:09]}  Ra5 {[%clk 0:00:13]} 34. Kf2 {[%clk 0:01:08]}  Bc4 {[%clk 0:00:13]} 35. Ke3 {[%clk 0:01:07]}  f5 {[%clk 0:00:12]} 36. g3 {[%clk 0:01:05]}  Ra7 {[%clk 0:00:09]} 37. h4 {[%clk 0:01:02]}  h6 {[%clk 0:00:09]} 38. Rg1 {[%clk 0:01:01]}  g5 {[%clk 0:00:09]} 39. hxg5 {[%clk 0:00:59]}  hxg5 {[%clk 0:00:10]} 40. Rh1 {[%clk 0:00:59]}  Kf8 {[%clk 0:00:10]} 41. Rh8+ {[%clk 0:00:58]}  Kg7 {[%clk 0:00:11]} 42. Rh2 {[%clk 0:00:49]}  Rc7 {[%clk 0:00:10]} 43. Rh1 {[%clk 0:00:47]}  Ba6 {[%clk 0:00:10]} 44. Ra1 {[%clk 0:00:44]}  Bb7 {[%clk 0:00:09]} 45. Ra7 {[%clk 0:00:44]}  Rf7 {[%clk 0:00:08]} 46. Nb5 {[%clk 0:00:41]}  f4+ {[%clk 0:00:09]} 47. gxf4 {[%clk 0:00:39]}  gxf4+ {[%clk 0:00:10]} 48. Kf2 {[%clk 0:00:39]}  Be4 {[%clk 0:00:10]} 49. Rxf7+ {[%clk 0:00:38]}  Kxf7 {[%clk 0:00:09]} 50. Nd6+ {[%clk 0:00:39]}  Kg6 {[%clk 0:00:08]} 51. Nxe4 {[%clk 0:00:40]}  Kf5 {[%clk 0:00:08]} 52. Nd6+ {[%clk 0:00:39]}  Kg4 {[%clk 0:00:08]} 53. d5 {[%clk 0:00:39]}  exd5 {[%clk 0:00:06]} 54. e6 {[%clk 0:00:39]}  d4 {[%clk 0:00:06]} 55. e7 {[%clk 0:00:39]}  d3 {[%clk 0:00:07]} 56. Nc4 {[%clk 0:00:39]}  d2 {[%clk 0:00:08]} 57. Nxd2 {[%clk 0:00:38]} 1-0


[Site "https://www.chess.com"]